lending/lending_fUSD_20250303
["ID","MTS","AMOUNT","RATE_DAILY","PERIOD"]
[355218735,1741022904233,-500.0,0.00014775,2]
[355218736,1741022904257,-500.0,0.00014775,2]
[355218737,1741022904280,-500.0,0.00014775,2]
[355218738,1741022904302,-500.0,0.00014775,2]
[355218739,1741022904324,-884.27,0.00014775,2]
[355218740,1741022904345,-500.0,0.00014775,2]
[355218741,1741022904367,-500.0,0.00014775,2]
[355218742,1741022904389,-500.0,0.00014775,2]
[355218743,1741022904412,-503.57,0.00014775,2]
[355218744,1741022904434,-500.0,0.00014775,2]
[355218745,1741022904458,-500.0,0.00014775,2]
[355218746,1741022904480,-500.0,0.00014775,2]
[355218747,1741022904504,-500.0,0.00014775,2]
[355218748,1741022904527,-500.0,0.00014775,2]
[355218749,1741022904550,-500.0,0.00014775,2]
[355218750,1741022904588,-500.0,0.00014775,2]
[355218751,1741022904615,-500.0,0.00014775,2]
[355218752,1741022904640,-500.0,0.00014775,2]
[355218753,1741022904665,-558.81831225,0.00014775,2]
[355218754,1741022904689,-500.0,0.00014775,2]
[355218755,1741022904715,-500.0,0.00014775,2]
[355218756,1741022904738,-500.0,0.00014775,2]
[355218757,1741022904763,-500.0,0.00014775,2]
[355218758,1741022904787,-500.0,0.00014775,2]
[355218759,1741022904811,-500.0,0.00014775,2]
[355218760,1741022904835,-500.0,0.00014775,2]
[355218761,1741022904860,-500.0,0.00014775,2]
[355218762,1741022904886,-500.0,0.00014775,2]
[355218763,1741022904911,-784.98,0.00014775,2]
[355218764,1741022904936,-500.0,0.00014775,2]
[355218765,1741022904963,-500.0,0.00014775,2]
[355218766,1741022904987,-500.0,0.00014775,2]
[355218767,1741022905011,-500.0,0.00014775,2]
[355218768,1741022905036,-1019.47,0.00014775,2]
[355218769,1741022905062,-613.91,0.00014775,2]
[355218770,1741022905087,-500.0,0.00014775,2]
[355218771,1741022905111,-500.0,0.00014775,2]
[355218772,1741022905140,-500.0,0.00014775,2]
[355218773,1741022905165,-500.0,0.00014775,2]
[355218774,1741022905189,-500.0,0.00014775,2]
[355218775,1741022905214,-500.0,0.00014775,2]
[355218776,1741022905238,-883.69,0.00014775,2]
[355218777,1741022905262,-500.0,0.00014775,2]
[355218778,1741022905286,-500.0,0.00014775,2]
[355218779,1741022905311,-500.0,0.00014775,2]
[355218780,1741022905335,-500.0,0.00014775,2]
[355218781,1741022905360,-245.25718713,0.00014775,2]
[355218782,1741022905384,-1532.3,0.00014775,2]
[355218783,1741022905409,-500.0,0.00014775,2]
[355218784,1741022905434,-500.0,0.00014775,2]
[355218785,1741022905460,-556.71,0.00014775,2]
[355218786,1741022905485,-771.87,0.00014775,2]
[355218787,1741022905511,-500.0,0.00014775,2]
[355218788,1741022905535,-500.0,0.00014775,2]
[355218789,1741022905561,-500.0,0.00014775,2]
[355218790,1741022905586,-725.0,0.00014775,2]
[355218791,1741022905611,-500.0,0.00014775,2]
[355218792,1741022905634,-500.0,0.00014775,2]
[355218793,1741022905660,-500.0,0.00014775,2]
[355218794,1741022905685,-815.27,0.00014775,2]
[355218795,1741022905712,-500.0,0.00014775,2]
[355218796,1741022905736,-500.0,0.00014775,2]
[355218797,1741022905758,-500.0,0.00014775,2]
[355218798,1741022905782,-994.43,0.00014775,2]
[355218799,1741022905806,-913.15,0.00014775,2]
[355218800,1741022905829,-500.0,0.00014775,2]
[355218801,1741022905853,-500.0,0.00014775,2]
[355218802,1741022905880,-500.0,0.00014775,2]
[355218803,1741022905903,-500.0,0.00014775,2]
[355218804,1741022905926,-629.6,0.00014775,2]
[355218805,1741022905951,-817.56,0.00014775,2]
[355218806,1741022905975,-500.0,0.00014775,2]
[355218807,1741022905999,-500.0,0.00014775,2]
[355218808,1741022906022,-553.42013192,0.00014775,2]
[355218809,1741022906045,-500.0,0.00014775,2]
[355218810,1741022906069,-500.0,0.00014775,2]
[355218811,1741022906092,-500.0,0.00014775,2]
[355218812,1741022906116,-513.35,0.00014775,2]
[355218813,1741022906141,-500.0,0.00014775,2]
[355218814,1741022906163,-500.0,0.00014775,2]
[355218815,1741022906186,-995.91,0.00014775,2]
[355218816,1741022906211,-838.25,0.00014775,2]
[355218817,1741022906235,-500.0,0.00014775,2]
[355218818,1741022906259,-500.0,0.00014775,2]
[355218819,1741022906282,-579.38324248,0.00014775,2]
[355218820,1741022906305,-500.0,0.00014775,2]
[355218821,1741022906328,-500.0,0.00014775,2]
[355218822,1741022906351,-578.24337259,0.00014775,2]
[355218823,1741022906373,-500.0,0.00014775,2]
[355218824,1741022906397,-734.87,0.00014775,2]
[355218825,1741022906421,-500.0,0.00014775,2]
[355218826,1741022906446,-500.0,0.00014775,2]
[355218827,1741022906473,-500.0,0.00014775,2]
[355218828,1741022906496,-500.0,0.00014775,2]
[355218829,1741022906520,-783.86,0.00014775,2]
[355218830,1741022906544,-500.0,0.00014775,2]
[355218831,1741022906567,-500.0,0.00014775,2]
[355218832,1741022906591,-853.85,0.00014775,2]
[355218833,1741022906616,-920.19,0.00014775,2]
[355218834,1741022906639,-500.0,0.00014775,2]
[355218835,1741022906662,-500.0,0.00014775,2]
[355218836,1741022906684,-500.0,0.00014775,2]
[355218837,1741022906709,-224.97873158,0.00014775,2]
[355218838,1741022906734,-500.0,0.00014775,2]
[355218839,1741022906758,-500.0,0.00014775,2]
[355218840,1741022906783,-500.0,0.00014775,2]
[355218841,1741022906807,-671.07,0.00014775,2]
[355218842,1741022906831,-500.0,0.00014775,2]
[355218843,1741022906858,-500.0,0.00014775,2]
[355218844,1741022906885,-500.0,0.00014775,2]
[355218845,1741022906913,-500.0,0.00014775,2]
[355218846,1741022906942,-776.13,0.00014775,2]
[355218847,1741022906971,-500.0,0.00014775,2]
[355218848,1741022906997,-500.0,0.00014775,2]
[355218849,1741022907023,-500.0,0.00014775,2]
[355218850,1741022907049,-500.0,0.00014775,2]
[355218851,1741022907074,-1300.16,0.00014775,2]
[355218852,1741022907334,-500.0,0.00014775,2]
[355218853,1741022907358,-500.0,0.00014775,2]
[355218854,1741022907379,-500.0,0.00014775,2]
[355218855,1741022907402,-500.0,0.00014775,2]
[355218856,1741022907424,-2207.48,0.00014775,2]
[355218857,1741022907446,-765.24,0.00014775,2]
[355218858,1741022907472,-727.86,0.00014775,2]
[355218859,1741022907494,-500.0,0.00014775,2]
[355218860,1741022907516,-500.0,0.00014775,2]
[355218861,1741022907539,-500.0,0.00014775,2]
[355218862,1741022907562,-500.0,0.00014775,2]
[355218863,1741022907584,-500.0,0.00014775,2]
[355218864,1741022907607,-1746.6,0.00014775,2]
[355218865,1741022907630,-526.58,0.00014775,2]
[355218866,1741022907652,-1178.75,0.00014775,2]
[355218867,1741022907675,-519.44303985,0.00014775,2]
[355218868,1741022907697,-791.62,0.00014775,2]
[355218869,1741022907722,-500.0,0.00014775,2]
[355218870,1741022907744,-500.0,0.00014775,2]
[355218871,1741022907767,-810.45,0.00014775,2]
[355218872,1741022907789,-500.0,0.00014775,2]
[355218873,1741022907811,-500.0,0.00014775,2]
[355218874,1741022907833,-958.18,0.00014775,2]
[355218875,1741022907856,-603.91,0.00014775,2]
[355218876,1741022907881,-500.0,0.00014775,2]
[355218877,1741022907904,-1104.82,0.00014775,2]
[355218878,1741022907928,-500.0,0.00014775,2]
[355218879,1741022907953,-500.0,0.00014775,2]
[355218880,1741022907977,-1676.16,0.00014775,2]
[355218881,1741022908001,-500.0,0.00014775,2]
[355218882,1741022908025,-500.0,0.00014775,2]
[355218883,1741022908050,-500.0,0.00014775,2]
[355218884,1741022908073,-843.78,0.00014775,2]
[355218885,1741022908096,-500.0,0.00014775,2]
[355218886,1741022908120,-500.0,0.00014775,2]
[355218887,1741022908143,-655.17,0.00014775,2]
[355218888,1741022908166,-500.0,0.00014775,2]
[355218889,1741022908189,-500.0,0.00014775,2]
[355218890,1741022908213,-314.20210558,0.00014775,2]
[355218891,1741022908235,-1985.39,0.00014775,2]
[355218892,1741022908257,-500.0,0.00014775,2]
[355218893,1741022908279,-500.0,0.00014775,2]
[355218894,1741022908302,-500.0,0.00014775,2]
[355218895,1741022908324,-500.0,0.00014775,2]
[355218896,1741022908346,-500.0,0.00014775,2]
[355218897,1741022908368,-500.0,0.00014775,2]
[355218898,1741022908390,-1269.08,0.00014775,2]
[355218899,1741022908411,-500.0,0.00014775,2]
[355218900,1741022908432,-527.46200874,0.00014775,2]
[355218901,1741022908457,-500.0,0.00014775,2]
[355218902,1741022908481,-1906.21,0.00014775,2]
[355218903,1741022908504,-500.0,0.00014775,2]
[355218904,1741022908526,-500.0,0.00014775,2]
[355218905,1741022908549,-1735.44,0.00014775,2]
[355218906,1741022908571,-500.0,0.00014775,2]
[355218907,1741022908594,-500.0,0.00014775,2]
[355218908,1741022908616,-500.0,0.00014775,2]
[355218909,1741022908639,-500.0,0.00014775,2]
[355218910,1741022908662,-500.0,0.00014775,2]
[355218911,1741022908685,-744.61023934,0.00014775,2]
[355218912,1741022911535,150.0,0.00013792,7]
[355218914,1741023007327,-500.0,0.00014775,7]
[355218915,1741023007353,-500.0,0.00014776,13]
[355218916,1741023007378,-158.0,0.00014776,13]
[355218918,1741023031923,321.93,0.00013787,2]
[355218924,1741023032196,-500.0,0.00014555,2]
[355218925,1741023032206,-900.0,0.00014555,2]
[355218926,1741023032216,-150.0,0.00014616,2]
[355218927,1741023032226,-175.83569762,0.00014676,2]
[355218928,1741023032237,-316.221787,0.0001469,2]
[355218929,1741023032246,-300.0,0.00014692,2]
[355218930,1741023032256,-1787.51562862,0.00014693,2]
[355218931,1741023032267,-460.41945869,0.00014693,2]
[355218932,1741023032283,-387.4749431,0.00014693,2]
[355218933,1741023032295,-323.81195368,0.00014693,2]
[355218934,1741023032367,-1612.13791205,0.00014693,2]
[355218935,1741023032422,-700.0,0.00014693,2]
[355218936,1741023032433,-322.9200006,0.00014693,2]
[355218937,1741023032477,-6126.19673655,0.00014693,2]
[355218938,1741023032489,-3521.89109511,0.00014693,2]
[355218948,1741023038119,-609.48820315,0.00014693,2]
[355218949,1741023038129,-316.22178699,0.00014693,2]
[355218950,1741023038139,-639.79850525,0.00014693,2]
[355218951,1741023038148,-150.0,0.00014772,2]
[355218952,1741023038158,-160.14705873,0.00014773,2]
[355218953,1741023038168,-160.123595,0.00014773,2]
[355218954,1741023038182,-500.0,0.00014773,2]
[355218955,1741023038192,-158.15430946,0.00014773,2]
[355218956,1741023038201,-159.06275983,0.00014773,2]
[355218957,1741023038210,-160.22068611,0.00014773,2]
[355218958,1741023038219,-500.0,0.00014773,2]
[355218959,1741023038229,-500.0,0.00014773,2]
[355218960,1741023038239,-500.0,0.00014773,2]
[355218961,1741023038248,-474.72605548,0.00014773,2]
[355218962,1741023038260,-25.27394452,0.00014773,2]
[355218963,1741023038269,-1141.51,0.00014773,2]
[355218964,1741023038278,-500.0,0.00014773,2]
[355218965,1741023038288,-1939.6,0.00014773,2]
[355218966,1741023038300,-1268.61605548,0.00014773,2]
[355218967,1741023039566,-238.20394452,0.00014773,2]
[355218968,1741023039578,-500.0,0.00014773,2]
[355218969,1741023039587,-500.0,0.00014773,2]
[355218970,1741023039597,-392.79605548,0.00014773,2]
[355218971,1741023039608,-773.66300001,0.00014773,2]
[355218972,1741023039675,-432.97946586,0.00014773,2]
[355218973,1741023039686,-446.79147865,0.00014773,2]
[355218974,1741023039696,-500.0,0.00014773,2]
[355218975,1741023039705,-123.91683796,0.00014773,2]
[355218976,1741023039717,-1127.51316204,0.00014773,2]
[355218977,1741023039726,-868.6,0.00014773,2]
[355218978,1741023039735,-500.0,0.00014773,2]
[355218980,1741023039744,-962.61,0.00014773,2]
[355218982,1741023039754,-500.0,0.00014773,2]
[355218984,1741023039763,-1358.82,0.00014773,2]
[355218986,1741023039772,-5602.51,0.00014773,2]
[355218988,1741023039781,-780.82,0.00014773,2]
[355218990,1741023039791,-1211.27,0.00014773,2]
[355218992,1741023039801,-1506.85,0.00014773,2]
[355218994,1741023039810,-190.30667161,0.00014773,2]
[355219035,1741023040170,-500.0,0.00014773,2]
[355219037,1741023040181,-1883.14332839,0.00014773,2]
[355219039,1741023040191,-500.0,0.00014773,2]
[355219041,1741023040200,-438.55667161,0.00014773,2]
[355219109,1741023041241,-61.44332839,0.00014773,2]
[355219111,1741023041251,-742.62,0.00014773,2]
[355219113,1741023041260,-9826.94,0.00014773,2]
[355219115,1741023041269,-1056.6,0.00014773,2]
[355219117,1741023041279,-529.25,0.00014773,2]
[355219119,1741023041288,-500.0,0.00014773,2]
[355219120,1741023041297,-1038.53,0.00014773,2]
[355219121,1741023041306,-500.0,0.00014773,2]
[355219122,1741023041315,-500.0,0.00014773,2]
[355219123,1741023041325,-2274.9,0.00014773,2]
[355219124,1741023041335,-661.56,0.00014773,2]
[355219125,1741023041344,-381.49549658,0.00014774,2]
[355219126,1741023041353,-11582.33,0.00014774,2]
[355219127,1741023041362,-500.0,0.00014774,2]
[355219128,1741023041372,-500.0,0.00014774,2]
[355219129,1741023041385,-500.0,0.00014774,2]
[355219130,1741023041395,-500.0,0.00014774,2]
[355219131,1741023041403,-500.0,0.00014774,2]
[355219132,1741023041412,-500.0,0.00014774,2]
[355219133,1741023041422,-500.0,0.00014774,2]
[355219134,1741023041431,-500.0,0.00014774,2]
[355219136,1741023041440,-500.0,0.00014774,2]
[355219138,1741023041450,-500.0,0.00014774,2]
[355219140,1741023041460,-500.0,0.00014774,2]
[355219142,1741023041470,-500.0,0.00014774,2]
[355219144,1741023041479,-500.0,0.00014774,2]
[355219146,1741023041488,-7726.39,0.00014774,2]
[355219148,1741023041497,-500.0,0.00014774,2]
[355219150,1741023041506,-500.0,0.00014774,2]
[355219152,1741023041515,-500.0,0.00014774,2]
[355219154,1741023041525,-779.47,0.00014774,2]
[355219156,1741023041534,-1355.65,0.00014774,2]
[355219158,1741023041543,-500.0,0.00014774,2]
[355219160,1741023041552,-2616.37,0.00014774,2]
[355219162,1741023041562,-1351.04,0.00014774,2]
[355219164,1741023041571,-956.32,0.00014774,2]
[355219166,1741023041581,-1169.81,0.00014774,2]
[355219168,1741023041590,-637.18,0.00014774,2]
[355219170,1741023041599,-1667.32,0.00014774,2]
[355219172,1741023041609,-500.0,0.00014774,2]
[355219174,1741023041618,-1295.28,0.00014774,2]
[355219176,1741023041628,-14536.73,0.00014774,2]
[355219178,1741023041637,-173.73304024,0.00014774,2]
[355219180,1741023041646,-500.0,0.00014774,2]
[355219182,1741023041655,-852.51,0.00014774,2]
[355219184,1741023041665,-476.16741996,0.00014774,2]
[355219186,1741023041674,-1969.23,0.00014774,2]
[355219188,1741023041683,-517.89530473,0.00014774,2]
[355219190,1741023041691,-533.63300267,0.00014774,2]
[355219192,1741023041700,-500.0,0.00014774,2]
[355219194,1741023041709,-731.29,0.00014774,2]
[355219196,1741023041719,-1252.38,0.00014774,2]
[355219198,1741023041728,-705.66,0.00014774,2]
[355219199,1741023041737,-1723.37,0.00014774,2]
[355219201,1741023041747,-1383.17,0.00014774,2]
[355219203,1741023041757,-500.0,0.00014774,2]
[355219205,1741023041767,-874.66,0.00014774,2]
[355219207,1741023041776,-1525.38,0.00014774,2]
[355219209,1741023041785,-500.0,0.00014774,2]
[355219211,1741023041794,-899.97,0.00014774,2]
[355219213,1741023041805,-500.0,0.00014774,2]
[355219216,1741023041815,-1018.43,0.00014774,2]
[355219217,1741023041825,-500.0,0.00014774,2]
[355219220,1741023041837,-500.0,0.00014774,2]
[355219221,1741023041847,-1511.28,0.00014774,2]
[355219223,1741023041856,-2728.76,0.00014774,2]
[355219225,1741023041866,-500.0,0.00014774,2]
[355219227,1741023041875,-500.95304027,0.00014774,2]
[355219230,1741023041885,-500.0,0.00014774,2]
[355219232,1741023041898,-500.0,0.00014774,2]
[355219234,1741023041909,-30187.62,0.00014774,2]
[355219236,1741023041919,-265.22572145,0.00014774,2]
[355219238,1741023041929,-500.0,0.00014774,2]
[355219240,1741023041940,-1119.01,0.00014774,2]
[355219242,1741023041951,-980.23,0.00014774,2]
[355219243,1741023041962,-607.81,0.00014774,2]
[355219246,1741023041972,-500.0,0.00014774,2]
[355219247,1741023041983,-500.0,0.00014774,2]
[355219249,1741023041993,-1059.8,0.00014774,2]
[355219252,1741023042003,-500.0,0.00014774,2]
[355219254,1741023042013,-5487.79,0.00014774,2]
[355219256,1741023042022,-165.60374786,0.00014774,2]
[355219257,1741023042031,-913.61,0.00014774,2]
[355219259,1741023042041,-69.59976066,0.00014775,2]
[355219262,1741023042051,-666.31,0.00014775,2]
[355219264,1741023042060,-500.0,0.00014775,2]
[355219266,1741023042070,-500.0,0.00014775,2]
[355219268,1741023042081,-500.0,0.00014775,2]
[355219270,1741023042091,-699.27,0.00014775,2]
[355219272,1741023042100,-500.0,0.00014775,2]
[355219274,1741023042110,-500.0,0.00014775,2]
[355219276,1741023042119,-500.0,0.00014775,2]
[355219277,1741023042128,-500.0,0.00014775,2]
[355219280,1741023042138,-500.0,0.00014775,2]
[355219282,1741023042147,-500.0,0.00014775,2]
[355219284,1741023042156,-500.0,0.00014775,2]
[355219286,1741023042166,-500.0,0.00014775,2]
[355219288,1741023042175,-568.0,0.00014775,2]
[355219290,1741023042184,-500.0,0.00014775,2]
[355219292,1741023042193,-300.64571051,0.00014775,2]
[355219294,1741023042204,-500.0,0.00014775,2]
[355219296,1741023042213,-827.34,0.00014775,2]
[355219298,1741023042222,-500.0,0.00014775,2]
[355219300,1741023042232,-500.0,0.00014775,2]
[355219302,1741023042241,-500.0,0.00014775,2]
[355219304,1741023042250,-1122.42,0.00014775,2]
[355219306,1741023042258,-500.0,0.00014775,2]
[355219307,1741023042268,-500.0,0.00014775,2]
[355219309,1741023042277,-500.0,0.00014775,2]
[355219311,1741023042286,-500.0,0.00014775,2]
[355219313,1741023042296,-2012.68,0.00014775,2]
[355219315,1741023042306,-617.73133248,0.00014775,2]
[355219318,1741023042315,-977.81,0.00014775,2]
[355219320,1741023042324,-500.0,0.00014775,2]
[355219322,1741023042336,-980.22,0.00014775,2]
[355219324,1741023042345,-3463.46,0.00014775,2]
[355219326,1741023042354,-500.0,0.00014775,2]
[355219328,1741023042363,-500.0,0.00014775,2]
[355219330,1741023042372,-500.0,0.00014775,2]
[355219332,1741023042382,-25967.09,0.00014775,2]
[355219334,1741023042391,-500.0,0.00014775,2]
[355219336,1741023042401,-500.0,0.00014775,2]
[355219338,1741023042410,-613.26,0.00014775,2]
[355219340,1741023042423,-500.0,0.00014775,2]
[355219342,1741023042432,-500.0,0.00014775,2]
[355219344,1741023042442,-500.0,0.00014775,2]
[355219346,1741023042451,-500.0,0.00014775,2]
[355219348,1741023042460,-500.0,0.00014775,2]
[355219350,1741023042469,-541.87,0.00014775,2]
[355219352,1741023042479,-500.0,0.00014775,2]
[355219354,1741023042488,-500.0,0.00014775,2]
[355219356,1741023042497,-500.0,0.00014775,2]
[355219358,1741023042507,-500.0,0.00014775,2]
[355219360,1741023042516,-500.0,0.00014775,2]
[355219362,1741023042525,-500.0,0.00014775,2]
[355219364,1741023042534,-500.0,0.00014775,2]
[355219366,1741023042543,-655.54,0.00014775,2]
[355219368,1741023042552,-500.0,0.00014775,2]
[355219370,1741023042562,-869.4,0.00014775,2]
[355219372,1741023042571,-517.479,0.00014775,2]
[355219374,1741023042581,-689.41,0.00014775,2]
[355219376,1741023042590,-500.0,0.00014775,2]
[355219378,1741023042600,-500.0,0.00014775,2]
[355219379,1741023042609,-3945.32,0.00014775,2]
[355219381,1741023042618,-500.0,0.00014775,2]
[355219383,1741023042627,-500.0,0.00014775,2]
[355219385,1741023042636,-500.0,0.00014775,2]
[355219387,1741023042646,-500.0,0.00014775,2]
[355219389,1741023042655,-500.0,0.00014775,2]
[355219391,1741023042664,-1005.64,0.00014775,2]
[355219393,1741023042673,-964.52,0.00014775,2]
[355219395,1741023042683,-500.0,0.00014775,2]
[355219397,1741023042692,-500.0,0.00014775,2]
[355219400,1741023042702,-500.0,0.00014775,2]
[355219401,1741023042711,-4148.68,0.00014775,2]
[355219404,1741023042721,-500.0,0.00014775,2]
[355219406,1741023042731,-552.58273054,0.00014775,2]
[355219408,1741023042740,-1187.59,0.00014775,2]
[355219410,1741023042749,-500.0,0.00014775,2]
[355219412,1741023042758,-500.0,0.00014775,2]
[355219414,1741023042767,-500.0,0.00014775,2]
[355219416,1741023042777,-500.0,0.00014775,2]
[355219418,1741023042786,-500.0,0.00014775,2]
[355219420,1741023042795,-500.0,0.00014775,2]
[355219422,1741023042805,-1872.33,0.00014775,2]
[355219424,1741023042814,-500.0,0.00014775,2]
[355219426,1741023042823,-500.0,0.00014775,2]
[355219428,1741023042833,-500.0,0.00014775,2]
[355219430,1741023042842,-500.0,0.00014775,2]
[355219432,1741023042852,-500.0,0.00014775,2]
[355219434,1741023042861,-500.0,0.00014775,2]
[355219436,1741023042871,-263.27,0.00014775,2]
[355219438,1741023042880,-500.0,0.00014775,2]
[355219439,1741023042890,-500.0,0.00014775,2]
[355219442,1741023042904,-500.0,0.00014775,2]
[355219443,1741023042914,-500.0,0.00014775,2]
[355219445,1741023042923,-500.0,0.00014775,2]
[355219447,1741023042933,-612.04,0.00014775,2]
[355219449,1741023042944,-500.0,0.00014775,2]
[355219451,1741023042953,-1848.23,0.00014775,2]
[355219453,1741023042963,-500.0,0.00014775,2]
[355219456,1741023042972,-500.0,0.00014775,2]
[355219458,1741023042984,-500.0,0.00014775,2]
[355219460,1741023042995,-500.0,0.00014775,2]
[355219462,1741023043004,-500.0,0.00014775,2]
[355219465,1741023043014,-500.0,0.00014775,2]
[355219467,1741023043024,-500.0,0.00014775,2]
[355219469,1741023043033,-500.0,0.00014775,2]
[355219471,1741023043043,-1381.25,0.00014775,2]
[355219473,1741023043052,-500.0,0.00014775,2]
[355219475,1741023043062,-500.0,0.00014775,2]
[355219477,1741023043071,-500.0,0.00014775,2]
[355219478,1741023043081,-500.0,0.00014775,2]
[355219481,1741023043090,-500.0,0.00014775,2]
[355219483,1741023043100,-500.0,0.00014775,2]
[355219509,1741023043325,-500.0,0.00014775,2]
[355219511,1741023043340,-679.4,0.00014775,2]
[355219513,1741023043350,-500.0,0.00014775,2]
[355219515,1741023043359,-500.0,0.00014775,2]
[355219517,1741023043368,-500.0,0.00014775,2]
[355219519,1741023043378,-500.0,0.00014775,2]
[355219521,1741023043387,-500.0,0.00014775,2]
[355219523,1741023043396,-4970.81335718,0.00014775,2]
[355219525,1741023043405,-2565.16,0.00014775,2]
[355219527,1741023043415,-500.0,0.00014775,2]
[355219529,1741023043424,-603.93,0.00014775,2]
[355219531,1741023043433,-500.0,0.00014775,2]
[355219533,1741023043442,-662.58,0.00014775,2]
[355219535,1741023043452,-749.08,0.00014775,2]
[355219537,1741023043461,-500.0,0.00014775,2]
[355219539,1741023043470,-9896.61,0.00014775,2]
[355219541,1741023043479,-500.0,0.00014775,2]
[355219543,1741023043488,-500.0,0.00014775,2]
[355219544,1741023043498,-500.0,0.00014775,2]
[355219546,1741023043507,-500.0,0.00014775,2]
[355219548,1741023043517,-500.0,0.00014775,2]
[355219550,1741023043526,-2723.62,0.00014775,2]
[355219553,1741023043536,-500.0,0.00014775,2]
[355219554,1741023043546,-500.0,0.00014775,2]
[355219556,1741023043555,-500.0,0.00014775,2]
[355219558,1741023043565,-534.82,0.00014775,2]
[355219560,1741023043574,-500.0,0.00014775,2]
[355219562,1741023043586,-961.06,0.00014775,2]
[355219564,1741023043595,-500.0,0.00014775,2]
[355219566,1741023043605,-759.8,0.00014775,2]
[355219568,1741023043615,-500.0,0.00014775,2]
[355219570,1741023043625,-500.0,0.00014776,2]
[355219572,1741023043634,-500.0,0.00014776,2]
[355219574,1741023043644,-581.98916747,0.00014776,2]
[355219576,1741023043653,-511.5491933,0.00014776,2]
[355219578,1741023043662,-200.0,0.00014776,2]
[355219580,1741023043671,-247.07703904,0.00014776,2]
[355219582,1741023043681,-500.0,0.00014776,2]
[355219584,1741023043690,-500.0,0.00014776,2]
[355219586,1741023043700,-525.64,0.00014776,2]
[355219588,1741023043710,-500.0,0.00014776,2]
[355219590,1741023043719,-500.0,0.00014776,2]
[355219592,1741023043730,-500.0,0.00014776,2]
[355219594,1741023043739,-500.0,0.00014776,2]
[355219596,1741023043748,-500.0,0.00014776,2]
[355219598,1741023043758,-500.0,0.00014776,2]
[355219600,1741023043767,-500.0,0.00014776,2]
[355219602,1741023043776,-500.0,0.00014776,2]
[355219604,1741023043786,-500.0,0.00014776,2]
[355219606,1741023043796,-500.0,0.00014776,2]
[355219608,1741023043805,-353.15921799,0.00014776,2]
[355219610,1741023043815,-502.7645482,0.00014776,2]
[355219614,1741023043825,-500.0,0.00014776,2]
[355219616,1741023043837,-500.0,0.00014776,2]
[355219619,1741023043847,-500.0,0.00014776,2]
[355219622,1741023043856,-730.67,0.00014776,2]
[355219626,1741023043865,-414.82325107,0.00014776,2]
[355219628,1741023043875,-667.79,0.00014776,2]
[355219631,1741023043885,-611.05334042,0.00014776,2]
[355219633,1741023043897,-500.0,0.00014776,2]
[355219635,1741023043909,-500.0,0.00014776,2]
[355219637,1741023043919,-500.0,0.00014776,2]
[355219639,1741023043929,-500.0,0.00014776,2]
[355219641,1741023043939,-500.0,0.00014776,2]
[355219643,1741023043949,-500.0,0.00014776,2]